fUST/lending_fUST_20260518
["ID","MTS","AMOUNT","RATE_DAILY","PERIOD"]
[422525709,1779036640000,-647.0,0.00010301,2]
[422525706,1779036640000,-8092.36609943,0.000102,2]
[422525707,1779036640000,-8092.36609943,0.000103,2]
[422525708,1779036640000,-2202.0,0.00010301,2]
[422525717,1779036640000,-366.0866464,0.000104,7]
[422525698,1779036640000,-151.0,0.0001,2]
[422525715,1779036640000,-325.9079251,0.00010366,2]
[422525721,1779036640000,-183.63633377,0.00010417,7]
[422525710,1779036640000,-443.0,0.00010301,2]
[422525718,1779036640000,-8092.36609943,0.000104,2]
[422525711,1779036640000,-185.0,0.00010301,2]
[422525700,1779036640000,-151.0,0.0001,2]
[422525719,1779036640000,-357.19542397,0.00010402,7]
[422525702,1779036640000,-323.55792988,0.00010088,2]
[422525704,1779036640000,-3292.0,0.00010106,2]
[422525701,1779036640000,-862.28603014,0.00010022,2]
[422525705,1779036640000,-823.0,0.00010108,2]
[422525703,1779036640000,-8092.36609943,0.000101,2]
[422525699,1779036640000,-151.0,0.0001,2]
[422525694,1779036640000,-151.0,0.0001,2]
[422525696,1779036640000,-151.0,0.0001,2]
[422525693,1779036640000,-151.0,0.0001,2]
[422525695,1779036640000,-151.0,0.0001,2]
[422525692,1779036640000,-151.0,0.0001,2]
[422525697,1779036640000,-151.0,0.0001,2]
[422525713,1779036640000,-244.1891963,0.00010366,2]
[422525727,1779036640000,-2912.02136891,0.0001065,2]
[422525712,1779036640000,-150.44,0.00010301,2]
[422525746,1779036640000,-142812.59909995,0.000108,2]
[422525737,1779036640000,-150.308,0.00010739,2]
[422525744,1779036640000,-5306.517203,0.00010793,2]
[422525743,1779036640000,-2733.258601,0.00010793,2]
[422525745,1779036640000,-8092.36609943,0.000108,2]
[422525740,1779036640000,-4222.99297,0.00010793,2]
[422525739,1779036640000,-2191.496485,0.00010793,2]
[422525742,1779036640000,-160.0,0.00010793,2]
[422525736,1779036640000,-234.684,0.00010739,2]
[422525738,1779036640000,-160.0,0.00010793,2]
[422525733,1779036640000,-160.0,0.00010739,2]
[422525735,1779036640000,-2642.863667,0.00010739,2]
[422525716,1779036640000,-1294.23171951,0.00010369,2]
[422525732,1779036640000,-3302.821502,0.00010739,2]
[422525734,1779036640000,-1401.431833,0.00010739,2]
[422525720,1779036640000,-500.0,0.00010403,2]
[422525714,1779036640000,-456.3765518,0.00010366,2]
[422525724,1779036640000,-152.0,0.00010598,7]
[422525725,1779036640000,-8092.36609943,0.000106,2]
[422525723,1779036640000,-500.0,0.00010533,2]
[422525773,1779036640000,-56274.19536131,0.000108,2]
[422525728,1779036640000,-8092.36609943,0.000107,2]
[422525730,1779036640000,-160.0,0.00010739,2]
[422525722,1779036640000,-8092.36609943,0.000105,2]
[422525731,1779036640000,-1731.410751,0.00010739,2]
[422525726,1779036640000,-212.061621,0.00010629,2]
[422525799,1779036647000,-268.97,0.00010793,2]
[422525801,1779036647000,-182.36056684,0.00010793,2]
[422525800,1779036647000,-661.819095,0.00010793,2]
[422525798,1779036647000,-160.0,0.00010793,2]
[422525925,1779037831000,-3571.18146246,6.869e-05,2]
[422525934,1779037831000,-200.0,7.197e-05,7]
[422525931,1779037831000,-151.0,7.008e-05,2]
[422525927,1779037831000,-1611.0209458,6.938e-05,2]
[422525933,1779037831000,-200.0,7.197e-05,2]
[422525929,1779037831000,-3388.9790542,6.938e-05,2]
[422525936,1779037831000,-1101.32395807,7.224e-05,2]
[422525993,1779037837000,-500.0,7.599e-05,2]
[422525990,1779037837000,-500.0,7.599e-05,2]
[422525992,1779037837000,-500.0,7.599e-05,2]
[422525978,1779037837000,-98.67604193,7.224e-05,2]
[422525984,1779037837000,-300.0,7.444e-05,2]
[422525976,1779037837000,-509.54020717,6.8e-05,2]
[422525988,1779037837000,-500.0,7.599e-05,2]
[422525986,1779037837000,-557.86742126,7.599e-05,2]
[422525982,1779037837000,-300.0,7.444e-05,2]
[422525999,1779037837000,-500.0,7.599e-05,2]
[422525980,1779037837000,-422.02910021,7.408e-05,2]
[422526017,1779037837000,-500.0,7.599e-05,2]
[422526001,1779037837000,-500.0,7.599e-05,2]
[422526013,1779037837000,-500.0,7.599e-05,2]
[422526015,1779037837000,-500.0,7.599e-05,2]
[422526003,1779037837000,-278.54778864,7.599e-05,2]
[422526011,1779037837000,-500.0,7.599e-05,2]
[422526005,1779037837000,-500.0,7.599e-05,2]
[422526007,1779037837000,-500.0,7.599e-05,2]
[422525995,1779037837000,-500.0,7.599e-05,2]
[422526009,1779037837000,-500.0,7.599e-05,2]
[422525997,1779037837000,-500.0,7.599e-05,2]
[422526018,1779037837000,-500.0,7.599e-05,2]
[422526102,1779037838000,-500.0,7.599e-05,2]
[422526098,1779037838000,-500.0,7.599e-05,2]
[422526094,1779037838000,-500.0,7.599e-05,2]
[422526092,1779037838000,-500.0,7.599e-05,2]
[422526100,1779037838000,-215.10808822,7.599e-05,2]
[422526081,1779037838000,-500.0,7.599e-05,2]
[422526084,1779037838000,-500.0,7.599e-05,2]
[422526086,1779037838000,-500.0,7.599e-05,2]
[422526080,1779037838000,-500.0,7.599e-05,2]
[422526096,1779037838000,-500.0,7.599e-05,2]
[422526088,1779037838000,-500.0,7.599e-05,2]
[422526072,1779037838000,-500.0,7.599e-05,2]
[422526090,1779037838000,-500.0,7.599e-05,2]
[422526104,1779037838000,-500.0,7.599e-05,2]
[422526128,1779037838000,-500.0,7.599e-05,2]
[422526108,1779037838000,-178.34156754,7.599e-05,2]
[422526111,1779037838000,-321.65843246,7.599e-05,2]
[422526115,1779037838000,-16.16171536,7.599e-05,2]
[422526113,1779037838000,-500.0,7.599e-05,2]
[422526117,1779037838000,-483.83828464,7.599e-05,2]
[422526130,1779037838000,-500.0,7.599e-05,2]
[422526119,1779037838000,-500.0,7.599e-05,2]
[422526121,1779037838000,-500.0,7.599e-05,2]
[422526134,1779037838000,-500.0,7.599e-05,2]
[422526136,1779037838000,-500.0,7.599e-05,2]
[422526124,1779037838000,-500.0,7.599e-05,2]
[422526123,1779037838000,-500.0,7.599e-05,2]
[422526076,1779037838000,-500.0,7.599e-05,2]
[422526106,1779037838000,-500.0,7.599e-05,2]
[422526079,1779037838000,-500.0,7.599e-05,2]
[422526024,1779037838000,-500.0,7.599e-05,2]
[422526078,1779037838000,-500.0,7.599e-05,2]
[422526032,1779037838000,-500.0,7.599e-05,2]
[422526035,1779037838000,-500.0,7.599e-05,2]
[422526037,1779037838000,-500.0,7.599e-05,2]
[422526041,1779037838000,-500.0,7.599e-05,2]
[422526022,1779037838000,-500.0,7.599e-05,2]
[422526020,1779037838000,-500.0,7.599e-05,2]
[422526026,1779037838000,-500.0,7.599e-05,2]
[422526033,1779037838000,-500.0,7.599e-05,2]
[422526126,1779037838000,-500.0,7.599e-05,2]
[422526028,1779037838000,-500.0,7.599e-05,2]
[422526039,1779037838000,-500.0,7.599e-05,2]
[422526043,1779037838000,-500.0,7.599e-05,2]
[422526030,1779037838000,-500.0,7.599e-05,2]
[422526044,1779037838000,-500.0,7.599e-05,2]
[422526048,1779037838000,-500.0,7.599e-05,2]
[422526046,1779037838000,-500.0,7.599e-05,2]
[422526056,1779037838000,-500.0,7.599e-05,2]
[422526050,1779037838000,-500.0,7.599e-05,2]
[422526057,1779037838000,-500.0,7.599e-05,2]
[422526059,1779037838000,-500.0,7.599e-05,2]
[422526052,1779037838000,-500.0,7.599e-05,2]
[422526061,1779037838000,-500.0,7.599e-05,2]
[422526054,1779037838000,-500.0,7.599e-05,2]
[422526063,1779037838000,-500.0,7.599e-05,2]
[422526065,1779037838000,-500.0,7.599e-05,2]
[422526067,1779037838000,-500.0,7.599e-05,2]
[422526070,1779037838000,-500.0,7.599e-05,2]
[422526074,1779037838000,-500.0,7.599e-05,2]
[422526083,1779037838000,-500.0,7.599e-05,2]
[422526069,1779037838000,-500.0,7.599e-05,2]
[422526138,1779037838000,-500.0,7.599e-05,2]
[422526132,1779037838000,-500.0,7.599e-05,2]
[422526153,1779037838000,-500.0,7.675e-05,2]
[422526203,1779037838000,-641.53874358,8.05e-05,2]
[422526209,1779037838000,-641.53874358,8.05e-05,2]
[422526211,1779037838000,-641.53874358,8.05e-05,2]
[422526213,1779037838000,-641.53874358,8.05e-05,2]
[422526233,1779037838000,-162.380719,9.127e-05,2]
[422526216,1779037838000,-641.53874358,8.05e-05,2]
[422526230,1779037838000,-233.19513594,8.595e-05,2]
[422526218,1779037838000,-1061.64314659,8.05e-05,2]
[422526224,1779037838000,-280.244,8.123e-05,2]
[422526235,1779037838000,-537.6845,9.127e-05,2]
[422526226,1779037838000,-465.9113899,8.219e-05,2]
[422526222,1779037838000,-150.308,8.123e-05,2]
[422526239,1779037838000,-500.0,9.127e-05,2]
[422526237,1779037838000,-537.6845,9.127e-05,2]
[422526196,1779037838000,-596.78022659,8.05e-05,2]
[422526214,1779037838000,-641.53874358,8.05e-05,2]
[422526232,1779037838000,-606.0,8.741e-05,2]
[422526228,1779037838000,-500.0,8.219e-05,2]
[422526243,1779037838000,-578.20924308,9.237e-05,2]
[422526241,1779037838000,-557.5788265,9.182e-05,2]
[422526245,1779037838000,-599.60298507,9.292e-05,2]
[422526247,1779037838000,-621.78829552,9.347e-05,2]
[422526249,1779037838000,-644.79446246,9.402e-05,2]
[422526250,1779037838000,-497.99433825,9.408e-05,2]
[422526254,1779037838000,-693.3919763,9.512e-05,2]
[422526256,1779037838000,-257.12553669,9.567e-05,2]
[422526252,1779037838000,-668.65185757,9.457e-05,2]
[422526260,1779037838000,-158.20172934,9.788e-05,7]
[422526259,1779037838000,-500.0,9.675e-05,2]
[422526142,1779037838000,-500.0,7.599e-05,2]
[422526220,1779037838000,-1449548.41546059,8.051e-05,2]
[422526207,1779037838000,-641.53874358,8.05e-05,2]
[422526258,1779037838000,-557.5788265,9.675e-05,2]
[422526199,1779037838000,-641.53874358,8.05e-05,2]
[422526205,1779037838000,-641.53874358,8.05e-05,2]
[422526155,1779037838000,-500.0,7.675e-05,2]
[422526144,1779037838000,-500.0,7.599e-05,2]
[422526157,1779037838000,-500.0,7.675e-05,2]
[422526161,1779037838000,-485.41396517,7.675e-05,2]
[422526159,1779037838000,-500.0,7.675e-05,2]
[422526150,1779037838000,-500.0,7.599e-05,2]
[422526151,1779037838000,-62841.43127343,7.6e-05,2]
[422526146,1779037838000,-500.0,7.599e-05,2]
[422526148,1779037838000,-500.0,7.599e-05,2]
[422526162,1779037838000,-1680.0,7.946e-05,2]
[422526164,1779037838000,-151.0,7.962e-05,2]
[422526166,1779037838000,-596.78022659,8.05e-05,2]
[422526168,1779037838000,-596.78022659,8.05e-05,2]
[422526170,1779037838000,-596.78022659,8.05e-05,2]
[422526140,1779037838000,-500.0,7.599e-05,2]
[422526183,1779037838000,-596.78022659,8.05e-05,2]
[422526177,1779037838000,-596.78022659,8.05e-05,2]
[422526197,1779037838000,-641.53874358,8.05e-05,2]
[422526201,1779037838000,-641.53874358,8.05e-05,2]
[422526194,1779037838000,-596.78022659,8.05e-05,2]
[422526192,1779037838000,-596.78022659,8.05e-05,2]
[422526186,1779037838000,-596.78022659,8.05e-05,2]
[422526190,1779037838000,-596.78022659,8.05e-05,2]
[422526175,1779037838000,-596.78022659,8.05e-05,2]
[422526179,1779037838000,-596.78022659,8.05e-05,2]
[422526174,1779037838000,-596.78022659,8.05e-05,2]
[422526172,1779037838000,-596.78022659,8.05e-05,2]
[422526181,1779037838000,-596.78022659,8.05e-05,2]
[422526185,1779037838000,-596.78022659,8.05e-05,2]
[422526188,1779037838000,-596.78022659,8.05e-05,2]
[422526331,1779037839000,-181.97249463,0.00010714,2]
[422526329,1779037839000,-1724.77409153,0.000107,2]
[422526325,1779037839000,-500.0,0.00010665,2]
[422526337,1779037839000,-13966.225058,0.000108,2]
[422526309,1779037839000,-645.0,0.00010485,2]
[422526320,1779037839000,-152.0,0.00010598,7]
[422526307,1779037839000,-1413.0,0.00010485,2]
[422526304,1779037839000,-307.48420455,0.00010443,7]
[422526322,1779037839000,-2001.61555217,0.000106,2]
[422526323,1779037839000,-1724.77409153,0.000106,2]
[422526327,1779037839000,-2001.61555217,0.000107,2]
[422526305,1779037839000,-154.34286237,0.00010443,7]
[422526339,1779037839000,-2001.61555217,0.000108,2]
[422526349,1779037839000,-308.68572473,0.00010879,7]
[422526341,1779037839000,-1724.77409153,0.000108,2]
[422526350,1779037839000,-2001.61555217,0.000109,2]
[422526352,1779037839000,-1724.77409153,0.000109,2]
[422526343,1779037839000,-187.46963697,0.00010875,7]
[422526318,1779037839000,-1724.77409153,0.000105,2]
[422526334,1779037839000,-500.0,0.00010771,2]
[422526347,1779037839000,-461.22630683,0.00010879,7]
[422526345,1779037839000,-474.60518801,0.00010879,7]
[422526356,1779037839000,-261.12366327,0.00010927,7]
[422526358,1779037839000,-359.20501378,0.00010927,7]
[422526354,1779037839000,-329669.7799229,0.00010904,2]
[422526362,1779037839000,-500.0,0.00010958,2]
[422526364,1779037839000,-606.2573,0.00010958,2]
[422526370,1779037839000,-500.0,0.00010958,2]
[422526336,1779037839000,-16110.56316571,0.000108,2]
[422526316,1779037839000,-2001.61555217,0.000105,2]
[422526293,1779037839000,-1724.77409153,0.000104,2]
[422526313,1779037839000,-185.0,0.00010485,2]
[422526365,1779037839000,-2691.8047,0.00010958,2]
[422526261,1779037839000,-153.74210228,9.788e-05,7]
[422526262,1779037839000,-160.0,9.886e-05,2]
[422526273,1779037839000,-421.1426,0.0001,2]
[422526269,1779037839000,-2001.61555217,0.0001,2]
[422526265,1779037839000,-152.0,9.927e-05,2]
[422526264,1779037839000,-161.67668242,9.886e-05,2]
[422526277,1779037839000,-1724.77409153,0.000101,2]
[422526268,1779037839000,-152.0,9.975e-05,7]
[422526270,1779037839000,-1724.77409153,0.0001,2]
[422526275,1779037839000,-2001.61555217,0.000101,2]
[422526263,1779037839000,-160.0,9.886e-05,2]
[422526271,1779037839000,-5176.92687805,0.0001,2]
[422526267,1779037839000,-152.0,9.972e-05,7]
[422526266,1779037839000,-152.0,9.972e-05,7]
[422526272,1779037839000,-8080.85929871,0.0001,2]
[422526278,1779037839000,-152.0,0.00010175,2]
[422526282,1779037839000,-1724.77409153,0.000102,2]
[422526284,1779037839000,-411.46569897,0.00010221,2]
[422526287,1779037839000,-2001.61555217,0.000103,2]
[422526289,1779037839000,-1724.77409153,0.000103,2]
[422526296,1779037839000,-26717.4629866,0.00010425,2]
[422526286,1779037839000,-500.0,0.00010223,2]
[422526291,1779037839000,-2001.61555217,0.000104,2]
[422526294,1779037839000,-1017.2767176,0.00010425,2]
[422526298,1779037839000,-434.5040566,0.00010425,2]
[422526300,1779037839000,-10990.8990692,0.00010425,2]
[422526302,1779037839000,-316.40345867,0.00010443,7]
[422526315,1779037839000,-179.60250689,0.00010489,7]
[422526311,1779037839000,-443.0,0.00010485,2]
[422526280,1779037839000,-2001.61555217,0.000102,2]
[422526367,1779037839000,-2691.8047,0.00010958,2]
[422526360,1779037839000,-727.88997852,0.00010946,2]
[422526435,1779037839000,-500.0,0.00010958,2]
[422526444,1779037839000,-584.05,0.00010958,2]
[422526458,1779037839000,-601.64,0.00010958,2]
[422526450,1779037839000,-500.0,0.00010958,2]
[422526441,1779037839000,-500.0,0.00010958,2]
[422526474,1779037839000,-500.0,0.00010958,2]
[422526462,1779037839000,-500.0,0.00010958,2]
[422526466,1779037839000,-500.0,0.00010958,2]
[422526481,1779037839000,-500.0,0.00010958,2]
[422526476,1779037839000,-612.81,0.00010958,2]
[422526472,1779037839000,-1015.13,0.00010958,2]
[422526464,1779037839000,-500.0,0.00010958,2]
[422526478,1779037839000,-500.0,0.00010958,2]
[422526470,1779037839000,-500.0,0.00010958,2]
[422526480,1779037839000,-500.0,0.00010958,2]
[422526460,1779037839000,-736.8,0.00010958,2]
[422526468,1779037839000,-1610.67,0.00010958,2]
[422526483,1779037839000,-500.0,0.00010958,2]
[422526487,1779037839000,-500.0,0.00010958,2]
[422526485,1779037839000,-500.0,0.00010958,2]
[422526489,1779037839000,-500.0,0.00010958,2]
[422526491,1779037839000,-500.0,0.00010958,2]
[422526500,1779037839000,-500.0,0.00010958,2]
[422526493,1779037839000,-500.0,0.00010958,2]
[422526502,1779037839000,-500.0,0.00010958,2]
[422526496,1779037839000,-622.47,0.00010958,2]
[422526498,1779037839000,-565.09,0.00010958,2]
[422526504,1779037839000,-782.94,0.00010958,2]
[422526494,1779037839000,-572.02,0.00010958,2]
[422526439,1779037839000,-500.0,0.00010958,2]
[422526452,1779037839000,-500.0,0.00010958,2]
[422526369,1779037839000,-500.0,0.00010958,2]
[422526437,1779037839000,-500.0,0.00010958,2]
[422526372,1779037839000,-500.0,0.00010958,2]
[422526374,1779037839000,-500.0,0.00010958,2]
[422526376,1779037839000,-500.0,0.00010958,2]
[422526396,1779037839000,-500.0,0.00010958,2]
[422526387,1779037839000,-500.0,0.00010958,2]
[422526390,1779037839000,-576.65,0.00010958,2]
[422526393,1779037839000,-2168.62,0.00010958,2]
[422526378,1779037839000,-500.0,0.00010958,2]
[422526448,1779037839000,-500.0,0.00010958,2]
[422526385,1779037839000,-500.0,0.00010958,2]
[422526381,1779037839000,-500.0,0.00010958,2]
[422526383,1779037839000,-1508.7821,0.00010958,2]
[422526403,1779037839000,-500.0,0.00010958,2]
[422526405,1779037839000,-500.0,0.00010958,2]
[422526400,1779037839000,-500.0,0.00010958,2]
[422526408,1779037839000,-653.22,0.00010958,2]
[422526411,1779037839000,-500.0,0.00010958,2]
[422526443,1779037839000,-500.0,0.00010958,2]
[422526454,1779037839000,-500.0,0.00010958,2]
[422526456,1779037839000,-500.0,0.00010958,2]
[422526425,1779037839000,-500.0,0.00010958,2]
[422526420,1779037839000,-500.0,0.00010958,2]
[422526446,1779037839000,-533.13,0.00010958,2]
[422526427,1779037839000,-500.0,0.00010958,2]
[422526423,1779037839000,-545.39,0.00010958,2]
[422526433,1779037839000,-500.0,0.00010958,2]
[422526429,1779037839000,-643.38,0.00010958,2]
[422526431,1779037839000,-583.39,0.00010958,2]
[422526410,1779037839000,-712.93,0.00010958,2]
[422526413,1779037839000,-500.0,0.00010958,2]
[422526588,1779037840000,-500.0,0.00010958,2]
[422526586,1779037840000,-500.0,0.00010958,2]
[422526571,1779037840000,-1321.04,0.00010958,2]
[422526580,1779037840000,-500.0,0.00010958,2]
[422526584,1779037840000,-500.0,0.00010958,2]
[422526575,1779037840000,-500.0,0.00010958,2]
[422526573,1779037840000,-500.0,0.00010958,2]
[422526578,1779037840000,-224.37973689,0.00010958,2]
[422526568,1779037840000,-500.0,0.00010958,2]
[422526569,1779037840000,-500.0,0.00010958,2]
[422526576,1779037840000,-500.0,0.00010958,2]
[422526582,1779037840000,-891.5,0.00010958,2]
[422526602,1779037840000,-500.0,0.00010958,2]
[422526628,1779037840000,-500.0,0.00010958,2]
[422526608,1779037840000,-500.0,0.00010958,2]
[422526606,1779037840000,-500.0,0.00010958,2]
[422526590,1779037840000,-500.0,0.00010958,2]
[422526610,1779037840000,-808.61,0.00010958,2]
[422526611,1779037840000,-500.0,0.00010958,2]
[422526594,1779037840000,-500.0,0.00010958,2]
[422526597,1779037840000,-500.0,0.00010958,2]
[422526592,1779037840000,-705.87,0.00010958,2]
[422526596,1779037840000,-500.0,0.00010958,2]
[422526600,1779037840000,-500.0,0.00010958,2]
[422526599,1779037840000,-536.8,0.00010958,2]
[422526613,1779037840000,-500.0,0.00010958,2]
[422526595,1779037840000,-500.0,0.00010958,2]
[422526566,1779037840000,-500.0,0.00010958,2]
[422526604,1779037840000,-596.1632,0.00010958,2]
[422526564,1779037840000,-500.0,0.00010958,2]
[422526532,1779037840000,-537.24504466,0.00010958,2]
[422526561,1779037840000,-500.0,0.00010958,2]
[422526627,1779037840000,-726.32,0.00010958,2]
[422526512,1779037840000,-393.16439871,0.00010958,2]
[422526508,1779037840000,-700.61,0.00010958,2]
[422526506,1779037840000,-500.0,0.00010958,2]
[422526530,1779037840000,-500.0,0.00010958,2]
[422526517,1779037840000,-500.0,0.00010958,2]
[422526513,1779037840000,-1782.61,0.00010958,2]
[422526535,1779037840000,-500.0,0.00010958,2]
[422526526,1779037840000,-500.0,0.00010958,2]
[422526533,1779037840000,-500.0,0.00010958,2]
[422526515,1779037840000,-541.96,0.00010958,2]
[422526523,1779037840000,-559.93556365,0.00010958,2]
[422526521,1779037840000,-500.0,0.00010958,2]
[422526537,1779037840000,-461.40178842,0.00010958,2]
[422526524,1779037840000,-347.57030565,0.00010958,2]
[422526528,1779037840000,-500.0,0.00010958,2]
[422526519,1779037840000,-500.0,0.00010958,2]
[422526557,1779037840000,-688.99,0.00010958,2]
[422526552,1779037840000,-704.99,0.00010958,2]
[422526542,1779037840000,-752.68,0.00010958,2]
[422526550,1779037840000,-538.61,0.00010958,2]
[422526539,1779037840000,-306.31322548,0.00010958,2]
[422526544,1779037840000,-359.20149947,0.00010958,2]
[422526555,1779037840000,-649.68,0.00010958,2]
[422526548,1779037840000,-1723.54,0.00010958,2]
[422526554,1779037840000,-500.0,0.00010958,2]
[422526546,1779037840000,-500.0,0.00010958,2]
[422526559,1779037840000,-500.0,0.00010958,2]
[422526541,1779037840000,-1161.35,0.00010958,2]
[422526562,1779037840000,-500.0,0.00010958,2]
[422526510,1779037840000,-500.0,0.00010958,2]
[422526630,1779037840000,-500.0,0.00010958,2]
[422526615,1779037840000,-500.0,0.00010958,2]
[422526707,1779037840000,-500.0,0.00010958,2]
[422526687,1779037840000,-500.0,0.00010958,2]
[422526705,1779037840000,-500.0,0.00010958,2]
[422526697,1779037840000,-500.0,0.00010958,2]
[422526685,1779037840000,-500.0,0.00010958,2]
[422526689,1779037840000,-306.30173123,0.00010958,2]
[422526693,1779037840000,-500.0,0.00010958,2]
[422526695,1779037840000,-1820.97,0.00010958,2]
[422526699,1779037840000,-661.68,0.00010958,2]
[422526709,1779037840000,-500.0,0.00010958,2]
[422526718,1779037840000,-500.0,0.00010958,2]
[422526714,1779037840000,-625.3749773,0.00010958,2]
[422526724,1779037840000,-531.03155846,0.00010958,2]
[422526701,1779037840000,-500.0,0.00010958,2]
[422526716,1779037840000,-567.48761739,0.00010958,2]
[422526720,1779037840000,-2041.96,0.00010958,2]
[422526711,1779037840000,-500.0,0.00010958,2]
[422526728,1779037840000,-372.01842682,0.00010958,2]
[422526730,1779037840000,-500.0,0.00010958,2]
[422526726,1779037840000,-500.0,0.00010958,2]
[422526732,1779037840000,-500.0,0.00010958,2]
[422526734,1779037840000,-500.0,0.00010958,2]
[422526736,1779037840000,-605.50745383,0.00010958,2]
[422526741,1779037840000,-570.16,0.00010958,2]
[422526743,1779037840000,-500.0,0.00010958,2]
[422526738,1779037840000,-500.0,0.00010958,2]
[422526739,1779037840000,-500.0,0.00010958,2]
[422526632,1779037840000,-500.0,0.00010958,2]
[422526712,1779037840000,-500.0,0.00010958,2]
[422526703,1779037840000,-500.0,0.00010958,2]
[422526722,1779037840000,-500.0,0.00010958,2]
[422526675,1779037840000,-995.03,0.00010958,2]
[422526691,1779037840000,-775.64,0.00010958,2]
[422526619,1779037840000,-500.0,0.00010958,2]
[422526617,1779037840000,-500.0,0.00010958,2]
[422526621,1779037840000,-500.0,0.00010958,2]
[422526625,1779037840000,-500.0,0.00010958,2]
[422526634,1779037840000,-500.0,0.00010958,2]
[422526636,1779037840000,-500.0,0.00010958,2]
[422526638,1779037840000,-500.0,0.00010958,2]
[422526640,1779037840000,-500.0,0.00010958,2]
[422526647,1779037840000,-500.0,0.00010958,2]
[422526649,1779037840000,-500.0,0.00010958,2]
[422526651,1779037840000,-714.35,0.00010958,2]
[422526653,1779037840000,-500.0,0.00010958,2]
[422526655,1779037840000,-500.0,0.00010958,2]
[422526656,1779037840000,-500.0,0.00010958,2]
[422526623,1779037840000,-500.0,0.00010958,2]
[422526668,1779037840000,-833.42,0.00010958,2]
[422526666,1779037840000,-954.02,0.00010958,2]
[422526670,1779037840000,-761.76,0.00010958,2]
[422526682,1779037840000,-500.0,0.00010958,2]
[422526643,1779037840000,-500.0,0.00010958,2]
[422526672,1779037840000,-684.27,0.00010958,2]
[422526674,1779037840000,-500.0,0.00010958,2]
[422526684,1779037840000,-500.0,0.00010958,2]
[422526662,1779037840000,-695.07,0.00010958,2]
[422526660,1779037840000,-500.0,0.00010958,2]
[422526658,1779037840000,-500.70333383,0.00010958,2]
[422526645,1779037840000,-500.0,0.00010958,2]
[422526642,1779037840000,-500.0,0.00010958,2]
[422526664,1779037840000,-500.0,0.00010958,2]
[422526820,1779037841000,-500.0,0.00010958,2]
[422526816,1779037841000,-745.79,0.00010958,2]
[422526814,1779037841000,-1351.24,0.00010958,2]
[422526805,1779037841000,-500.0,0.00010958,2]
[422526818,1779037841000,-567.37,0.00010958,2]
[422526807,1779037841000,-500.0,0.00010958,2]
[422526799,1779037841000,-500.0,0.00010958,2]
[422526803,1779037841000,-500.0,0.00010958,2]
[422526795,1779037841000,-500.0,0.00010958,2]
[422526797,1779037841000,-500.0,0.00010958,2]
[422526801,1779037841000,-500.0,0.00010958,2]
[422526831,1779037841000,-500.0,0.00010958,2]
[422526810,1779037841000,-1544.27,0.00010958,2]
[422526837,1779037841000,-500.0,0.00010958,2]
[422526839,1779037841000,-500.0,0.00010958,2]
[422526835,1779037841000,-500.0,0.00010958,2]
[422526823,1779037841000,-546.20107439,0.00010958,2]
[422526821,1779037841000,-740.28,0.00010958,2]
[422526829,1779037841000,-503.16,0.00010958,2]
[422526826,1779037841000,-4850.906708,0.00010958,2]
[422526827,1779037841000,-500.0,0.00010958,2]
[422526841,1779037841000,-500.0,0.00010958,2]
[422526843,1779037841000,-500.0,0.00010958,2]
[422526846,1779037841000,-500.0,0.00010958,2]
[422526848,1779037841000,-500.0,0.00010958,2]
[422526860,1779037841000,-1507.92,0.00010958,2]
[422526866,1779037841000,-974.64,0.00010958,2]